{"text_format":"1","workbook":"xlsx","n_sheets":5,"sheets":["TELA INICIAL","CADASTRO","EDITAR","Gráficos","Plan1"],"not_rendered":{"charts":3,"images":0,"macros":1,"external_links":1,"defined_names":7,"comments":0,"pivot_tables":0},"unopened":[],"bounds":{"document_bytes":16777216,"sheet_cells":100000,"rows_first":2000,"rows_last":500,"rows_between":2000,"halvings":0,"cell_chars":16384,"cell_head_chars":4096},"cells_cut":0,"cells_raw":0,"read":"whole","date_system":"1900"}

{"sheet":"TELA INICIAL","index":0,"n_rows":0,"n_cols":0,"rows_kept":0,"cut":false,"hidden":false,"merged":[]}

{"sheet":"CADASTRO","index":1,"n_rows":20,"n_cols":31,"rows_kept":20,"cut":false,"hidden":false,"merged":[[20,0,20,19],[13,0,13,2],[13,4,13,7],[13,9,13,13],[13,15,13,17],[15,0,15,2],[15,15,15,17],[15,5,15,7],[17,0,17,2],[17,5,17,7],[17,15,17,17],[15,10,15,13],[17,10,17,11],[9,0,9,7],[9,9,9,11],[9,13,9,19],[11,0,11,7],[11,9,11,11],[11,13,11,17],[0,0,7,3],[2,5,2,11],[4,5,4,9],[4,11,4,13],[6,11,6,13],[6,15,6,17],[6,5,6,6],[2,13,2,14],[4,15,4,16],[4,18,4,19],[2,18,2,19]]}
["insira aqui o nome da sua empresa",null,null,null,null,null,null,null,null,null,null,null,null,null,null,null,null,null,null,null,null,null,null,null,null,null,null,null,null,null,"ESTADO CIVIL"]
[null,null,null,null,null,"Nome Completo:",null,null,null,null,null,null,null,"Nacionalidade:",null,null,"Estado Civil:",null,"Profissão:",null,null,null,null,null,null,null,null,null,null,null,"SOLTEIRO"]
[null,null,null,null,null,null,null,null,null,null,null,null,null,null,null,null,null,null,null,null,null,null,null,null,null,null,null,null,null,null,"CASADO"]
[null,null,null,null,null,"CPF:",null,null,null,null,null,"RG:",null,null,null,"CTPS:",null,null,"Série:",null,null,null,null,null,null,null,null,null,null,null,"VIUVO"]
[null,null,null,null,null,null,null,null,null,null,null,null,null,null,null,null,null,null,null,null,null,null,null,null,null,null,null,null,null,null,"OUTROS"]
[null,null,null,null,null,"Data de Nascimento:",null,null,null,null,null,"PIS:",null,null,null,"Naturalidade:",null,null,"UF:"]
[]
[null,null,null,null,null,null,null,null,null,null,null,null,null,null,null,null,null,null,null,null,null,null,null,null,null,null,null,null,null,null,"TIPO DE AÇÃO"]
["Endereço:",null,null,null,null,null,null,null,null,"Número:",null,null,null,"Complemento:",null,null,null,null,null,null,null,null,null,null,null,null,null,null,null,null,"CIVÉL"]
[null,null,null,null,null,null,null,null,null,null,null,null,null,null,null,null,null,null,null,null,null,null,null,null,null,null,null,null,null,null,"FAMILIA"]
["Município:",null,null,null,null,null,null,null,null,"Bairro:",null,null,null,"Cep:",null,null,null,null,null,"UF:",null,null,null,null,null,null,null,null,null,null,"PENAL"]
[null,null,null,null,null,null,null,null,null,null,null,null,null,null,null,null,null,null,null,null,null,null,null,null,null,null,null,null,null,null,"PREVIDENCIA"]
["Telefone:",null,null,null,null,"Celular",null,null,null,"E-mail:",null,null,null,null,null,"Cadastrado em:",null,null,null,"Código:",null,null,null,null,null,null,null,null,null,null,"TRABALHISTA"]
[null,null,null,null,null,null,null,null,null,null,null,null,null,null,null,null,null,null,null,null,null,null,null,null,null,null,null,null,null,null,"TRIBUTÁRIO"]
["DATA INICIO DE CONTRATO:",null,null,null,null,"DATA ABERTURA DE PROCESSO:",null,null,null,null,"NUMERO DO PROCESSO:",null,null,null,null,"TIPO DE AÇÃO:",null,null,null,"STATUS",null,null,null,null,null,null,null,null,null,null,"OUTROS"]
[]
["NEGOCIAÇÃO:",null,null,null,null,"FORMA DE PAGAMENTO:",null,null,null,null,"VALOR TOTAL:",null,null,"PARCELAS:",null,"DATA PRIMEIRO PAGAMENTO:",null,null,null,null,null,null,null,null,null,null,null,null,null,null,"STATUS"]
[null,null,null,null,null,null,null,null,null,null,null,null,null,null,null,null,null,null,null,null,null,null,null,null,null,null,null,null,null,null,"ATIVO"]
[null,null,null,null,null,null,null,null,null,null,null,null,null,null,null,null,null,null,null,null,null,null,null,null,null,null,null,null,null,null,"INATIVO"]
["Observações:",null,null,null,null,null,null,null,null,null,null,null,null,null,null,null,null,null,null,null,null,null,null,null,null,null,null,null,null,null,"ENCERRADO"]

{"sheet":"EDITAR","index":2,"n_rows":20,"n_cols":20,"rows_kept":20,"cut":false,"hidden":false,"merged":[[13,0,13,2],[13,4,13,7],[13,9,13,13],[13,15,13,17],[20,0,20,19],[15,0,15,2],[15,5,15,7],[15,15,15,17],[17,0,17,2],[17,5,17,7],[17,15,17,17],[9,0,9,7],[9,9,9,11],[9,13,9,19],[11,0,11,7],[11,9,11,11],[11,13,11,17],[4,15,4,16],[4,18,4,19],[6,5,6,6],[6,11,6,13],[6,15,6,17],[2,1,2,2],[3,1,3,2],[4,1,4,2],[2,5,2,11],[2,13,2,14],[4,5,4,9],[4,11,4,13]]}
[]
["PESQUISAR:",null,null,null,null,"Nome Completo:",null,null,null,null,null,null,null,"Nacionalidade:",null,null,"Estado Civil:",null,"Profissão:"]
["NOME:"]
["CPF:",null,null,null,null,"CPF:",null,null,null,null,null,"RG:",null,null,null,"CTPS:",null,null,"Série:"]
["PROCESSO:"]
[null,null,null,null,null,"Data de Nascimento:",null,null,null,null,null,"PIS:",null,null,null,"Naturalidade:",null,null,"UF:"]
[]
[]
["Endereço:",null,null,null,null,null,null,null,null,"Número:",null,null,null,"Complemento:"]
[]
["Município:",null,null,null,null,null,null,null,null,"Bairro:",null,null,null,"Cep:",null,null,null,null,null,"UF:"]
[]
["Telefone:",null,null,null,null,"Celular",null,null,null,"E-mail:",null,null,null,null,null,"Cadastrado em:",null,null,null,"Código:"]
[]
["DATA INICIO DE CONTRATO:",null,null,null,null,"DATA ABERTURA DE PROCESSO:",null,null,null,null,"NUMERO DO PROCESSO:",null,null,null,null,"TIPO DE AÇÃO:",null,null,null,"STATUS"]
[]
["NEGOCIAÇÃO:",null,null,null,null,"FORMA DE PAGAMENTO:",null,null,null,null,"VALOR TOTAL:",null,null,"PARCELAS:",null,"DATA PRIMEIRO PAGAMENTO:"]
[]
[]
["Observações:"]

{"sheet":"Gráficos","index":3,"n_rows":0,"n_cols":0,"rows_kept":0,"cut":false,"hidden":false,"merged":[]}

{"sheet":"Plan1","index":4,"n_rows":11,"n_cols":37,"rows_kept":11,"cut":false,"hidden":false,"merged":[]}
[]
[null,null,1,2,3,4,5,6,7,8,9,10,11,12,13,14,15,16,17,18,19,20,21,22,23,24,25,26,27,28,29,30,31,32,33,34,35]
[null,null,{"$f":"CADASTRO!F3","v":0},{"$f":"CADASTRO!N3","v":0},{"$f":"CADASTRO!Q3","v":0},{"$f":"CADASTRO!S3","v":0},{"$f":"CADASTRO!F5","v":0},{"$f":"CADASTRO!L5","v":0},{"$f":"CADASTRO!P5","v":0},{"$f":"CADASTRO!S5","v":0},{"$f":"CADASTRO!F7","v":0},{"$f":"CADASTRO!L7","v":0},{"$f":"CADASTRO!P7","v":0},{"$f":"CADASTRO!S7","v":0},{"$f":"CADASTRO!A10","v":0},{"$f":"CADASTRO!J10","v":0},{"$f":"CADASTRO!N10","v":0},{"$f":"CADASTRO!A12","v":0},{"$f":"CADASTRO!J12","v":0},{"$f":"CADASTRO!N12","v":0},{"$f":"CADASTRO!T12","v":0},{"$f":"CADASTRO!A16","v":0},{"$f":"CADASTRO!F16","v":0},{"$f":"CADASTRO!K16","v":0},{"$f":"CADASTRO!P16","v":0},{"$f":"CADASTRO!T16","v":0},{"$f":"CADASTRO!A16","v":0},{"$f":"CADASTRO!F16","v":0},{"$f":"CADASTRO!K16","v":0},{"$f":"CADASTRO!P16","v":0},{"$f":"CADASTRO!T16","v":0},{"$f":"CADASTRO!A18","v":0},{"$f":"CADASTRO!F18","v":0},{"$f":"CADASTRO!K18","v":0},{"$f":"CADASTRO!N18","v":0},{"$f":"CADASTRO!P18","v":0},{"$f":"CADASTRO!A21","v":0}]
[]
[]
[]
[null,null,1,2,3,4,5,6,7,8,9,10,11,12,13,14,15,16,17,18,19,20,21,22,23,24,25,26,27,28,29,30,31,32,33,34,35]
[null,null,0,0,0,0,0,0,0,0,0,0,0,0,0,0,0,0,0,0,0,0,0,0,0,0,0,0,0,0,0,0,0,0,0,0,0]
[null,null,0,0,0,0,0,0,0,0,0,0,0,0,0,0,0,0,0,0,0,0,0,0,0,0,0,0,0,0,0,0,0,0,0,0,0]
[null,null,0,0,0,0,0,0,0,0,0,0,0,0,0,0,0,0,0,0,0,0,0,0,0,0,0,0,0,0,0,0,0,0,0,0,0]
[null,null,"LIONEL MESSI",0,0,0,0,0,0,0,0,0,0,0,0,0,0,0,0,0,0,0,0,0,0,0,0,0,0,0,0,0,0,0,0,0,0]